Cogmind - Beta 14 *** ADVENTURER MODE // 2024.09.24 @ 13:32:49 // Winter2019/RPGLIKE Player: DeepestRoots Result: Destroyed by D-53 Grenadier with Mini Grenade Launcher Performance ------------- Evolutions (0) 0 Regions Visited (2) 400 Robots Destroyed (25) 125 Value Destroyed (467) 467 Prototype IDs (2) 40 Alien Tech Used (0) 0 Bonus (99) 99 TOTAL SCORE: 1131 Bonus ------- Follower Combat Kills 99 Cogmind --------- Core Integrity 0/600 Matter 234/300 Energy 242/250 System Corruption 1% Temperature Cool (78) Movement Rolling (80) Location -10/Mines Parts ------- > --- POWER (1) -------- Ion Engine > --- PROPULSION (2) --- Wheel Wheel > --- UTILITY (2) ------ Signal Interpreter Improved Terrain Scanner > --- WEAPON (2) ------- Small Laser Small Laser > --- INVENTORY (1) ---- Grenade Launcher Peak State ------------ > --- POWER ------------ Ion Engine > --- PROPULSION ------- Wheel Wheel > --- UTILITY ---------- Signal Interpreter Improved Terrain Scanner > --- WEAPON ----------- Small Laser Small Laser > --- INVENTORY -------- Mining Laser [Rating: 9] Favorites ----------- Power Ion Engine Engine Ion Engine Propulsion Wheel Wheel Wheel Utility Improved Terrain Scanner Device Improved Terrain Scanner Processor Signal Interpreter Weapon Small Laser Energy Gun Small Laser Launcher Grenade Launcher Build | -11 -10 -10 ------- Run | Yrd Mat Min Slots Evolved 3 | 3 . . Power . | . . . Propulsion 1 | 1 . . Utility 1 | 1 . . Weapon 1 | 1 . . Parts Attached 10 | 7 1 2 Power 1 | 1 . . Engine 1 | 1 . . Core . | . . . Reactor . | . . . Propulsion 3 | 3 . . Treads . | . . . Leg . | . . . Wheel 3 | 3 . . Hover . | . . . Flight . | . . . Utility 2 | 1 1 . Device 1 | 1 . . Storage . | . . . Processor 1 | . 1 . Hackware . | . . . Protection . | . . . Artifact . | . . . Weapon 4 | 2 . 2 Energy Gun 3 | 2 . 1 Energy Cannon . | . . . Ballistic Gun . | . . . Ballistic Cannon . | . . . Launcher 1 | . . 1 Special Weapon . | . . . Impact Weapon . | . . . Slashing Weapon . | . . . Piercing Weapon . | . . . Special Melee Weapon . | . . . Unidentified Prototypes . | . . . Parts Lost . | . . . Power . | . . . Propulsion . | . . . Utility . | . . . Weapon . | . . . Highest Loss Streak . | . . . To Critical Strikes . | . . . Average Slot Usage (%) 98 | . 97 100 Engine 14 | . 14 14 Wheel 28 | . 28 28 Device 14 | . 14 14 Processor 12 | . 11 14 Energy Gun 27 | . 28 27 Peak Build Rating 9 | 8 9 9 Average Rating 8 | 4 8 9 On Entrance 5 | . 8 9 Naked Turns . | . . . Heaviest Build 8 | 8 8 8 Greatest Support 26 | 26 20 20 Greatest Overweight (x) . | . . . Average Overweight (x) . | . . . Largest Inventory Capacity 1 | 1 1 1 Average Capacity . | . 1 1 Most Carried 1 | 1 1 1 Average Carried . | . . . Final Capacity 1 | 1 1 1 Final Carried 1 | 1 1 1 Class Distribution -------------------- 100% | Hacker-Mutant Dominant Class ---------------- Hacker-Mutant | -10/Materials Hacker-Mutant | -10/Mines Resources | -11 -10 -10 ----------- Run | Yrd Mat Min Matter Collected 284 | 270 10 4 Remotely . | . . . Salvage Created 568 | 202 300 66 Parts 35 | 13 18 4 Haulers Intercepted . | . . . Recyclers Shooed 3 | 1 1 1 Parts Field Recycled . | . . . Retrieved Matter . | . . . Parts Self-Destructed . | . . . Prevented . | . . . Kills | -11 -10 -10 ------- Run | Yrd Mat Min Combat Hostiles Destroyed 25 | . 10 15 Guns 15 | . 10 5 AOE 10 | . . 10 Classes Destroyed 7 | 3 3 1 Worker 2 | 2 . . Tunneler 5 | 5 . . Recycler 1 | 1 . . Watcher 2 | . 2 . Swarmer 6 | . 3 3 Grunt 9 | . 7 2 Assembled 10 | . . 10 Best Kill Streak 10 | 6 3 10 Combat Bots Only 10 | . 3 10 Max Kills in Single Turn 3 | 2 2 3 Gunslinging 1 | . 1 . Exploded 3 | . . 3 Melee . | . . . Uniques/NPCs Destroyed . | . . . Combat | -11 -10 -10 -------- Run | Yrd Mat Min Hostile Shots Fired 114 | . 25 89 Missed 30 | . 5 25 Damage Taken 985 | . 185 800 Core 826 | . 163 663 Absorbed by Shields . | . . . Redirected to Core 511 | . 67 444 Ignored by Resistances 291 | . 56 235 Core Remaining (%) 100 | 100 . . Volleys Fired 70 | 11 34 25 Largest 2 | 2 2 2 Hottest 80 | 80 80 80 Shots Fired 135 | 22 68 45 Gun 130 | 22 68 40 Cannon . | . . . Launcher 5 | . . 5 Special . | . . . Kinetic . | . . . Thermal 130 | 22 68 40 Explosive 5 | . . 5 Electromagnetic . | . . . Robot Hit Streak 25 | 16 25 19 Robot Miss Streak 3 | . 1 3 Penetration Max . | . . . Secondary Targets 3 | . 1 2 Max Gunslinging Chain 1 | . 1 1 Shots Hit Robots 105 | 16 55 34 Core Hits 71 | 9 24 38 Critical Kills . | . . . Critical Parts Destroyed . | . . . Critical Strikes . | . . . Melee Attacks . | . . . Impact . | . . . Slashing . | . . . Piercing . | . . . Sneak Attacks . | . . . Combat Hostiles . | . . . Follow-up Attacks . | . . . Damage Inflicted 1716 | 182 632 902 Guns 1184 | 182 632 370 Cannons . | . . . Explosions 532 | . . 532 Melee . | . . . Ramming . | . . . Kinetic . | . . . Thermal 1184 | 182 632 370 Explosive 532 | . . 532 Electromagnetic . | . . . Impact . | . . . Slashing . | . . . Piercing . | . . . Highest Corruption 1 | . 1 1 Average Corruption 1 | . 1 1 Corruption Purged . | . . . Corruption Blocked . | . . . Effects 3 | . . 3 Message Errors 2 | . . 2 Data Loss (minor) 1 | . . 1 Overload Shots . | . . . Overflow Damage 22 | . . 22 Projectiles . | . . . Explosions 22 | . . 22 Melee . | . . . Knockbacks . | . . . Impact . | . . . Kinetic . | . . . Secondary . | . . . Self-Inflicted Damage . | . . . Shots . | . . . Rammed . | . . . Targets Rammed . | . . . Kicked . | . . . Crushed . | . . . Highest Temperature 144 | 72 144 126 Average Temperature 44 | 27 51 42 Received Heat Transfer 187 | . 129 58 Siege Activations . | . . . Robots Corrupted . | . . . Combat Hostiles . | . . . Parts Fried . | . . . Impact Corruptions . | . . . Robots Melted . | . . . Combat Hostiles . | . . . Parts Melted 9 | 1 5 3 Heat Transferred 2650 | 425 1400 825 Parts Sabotaged . | . . . Parts Stolen . | . . . Parts Stripped . | . . . Power Chain Reactions . | . . . Alert | -11 -10 -10 ------- Run | Yrd Mat Min Peak Influence 309 | 40 309 212 Initial 22 | . 22 19 Average 83 | 10 85 107 Maximum Alert Level 1 | . 1 1 Low Security (%) 83 | 100 79 98 Level 1 16 | . 20 1 Level 2 . | . . . Level 3 . | . . . Level 4 . | . . . Level 5 . | . . . High Security . | . . . Max Security . | . . . Squads Dispatched 4 | . 3 1 Investigation 3 | . 3 . Extermination . | . . . Reinforcement . | . . . Assault 1 | . . 1 Garrison . | . . . Intercept . | . . . Searches Triggered . | . . . Construction Impeded . | . . . Haulers Reinforced . | . . . Active Scanning Responses . | . . . Cargo Convoy Interrupts . | . . . Stealth | -11 -10 -10 --------- Run | Yrd Mat Min Distress Signals . | . . . Communications Jammed . | . . . Distress Signals . | . . . Times Spotted 40 | . 14 26 Peak Tracking Total 20 | . 4 20 Tactical Retreats . | . . . Traps | -11 -10 -10 ------- Run | Yrd Mat Min Traps Triggered 2 | . 2 . Indirectly . | . . . Trap Hack Attempts . | . . . Triggered . | . . . Disarmed . | . . . Reprogrammed . | . . . Reused . | . . . Traps Extracted . | . . . Installed . | . . . Triggered . | . . . Machines | -11 -10 -10 ---------- Run | Yrd Mat Min Machines Disabled . | . . . Max in Single Turn . | . . . Machines Repaired . | . . . Machines Dismantled . | . . . Machines Sabotaged . | . . . Overloaded Fab Kills . | . . . Hacking | -11 -10 -10 --------- Run | Yrd Mat Min Machines Accessed 9 | . 9 . Terminals 7 | . 7 . Fabricators . | . . . Repair Stations . | . . . Recycling Units 2 | . 2 . Scanalyzers . | . . . Garrison Access . | . . . Total Hacks 31 | . 31 . Successful 22 | . 22 . Failed 8 | . 8 . Catastrophic . | . . . Database Lockouts 1 | . 1 . Manual 28 | . 28 . Terminals 28 | . 28 . Fabricators . | . . . Repair Stations . | . . . Recycling Units 3 | . 3 . Scanalyzers . | . . . Garrison Access . | . . . Terminal Hacks 7 | . 7 . Robot Analysis 4 | . 4 . Prototype ID Bank 1 | . 1 . Unreport Threat 1 | . 1 . Hauler Manifests 1 | . 1 . Fabricator Hacks . | . . . Repair Station Hacks . | . . . Recycling Unit Hacks . | . . . Scanalyzer . | . . . Garrison Access Hacks . | . . . Unauthorized Hacks 15 | . 15 . Terminals 13 | . 13 . Track 2 | . 2 . Botnet 4 | . 4 . Disrupt 1 | . 1 . Skim 6 | . 6 . Fabricators . | . . . Repair Stations . | . . . Recycling Units 2 | . 2 . Tunnel 2 | . 2 . Scanalyzers . | . . . Garrison Access . | . . . Data Cores Recovered . | . . . Used . | . . . Hacking Detections 4 | . 4 . Full Trace Events . | . . . Feedback Events . | . . . Feedback Blocked . | . . . Robot Schematics Acquired . | . . . Robots Built . | . . . Authchips . | . . . Time . | . . . Total Robot Build Rating . | . . . Part Schematics Acquired . | . . . Parts Built . | . . . Authchips . | . . . Time . | . . . Total Part Build Rating . | . . . Parts Repaired . | . . . Time . | . . . Parts Recycled . | . . . Recycled Matter . | . . . Retrieved Matter . | . . . Retrieved Components . | . . . Parts Scanalyzed . | . . . Part Schematics Acquired . | . . . Parts Damaged . | . . . Bothacking | -11 -10 -10 ------------ Run | Yrd Mat Min Used RIF Installer . | . . . Robots Hacked . | . . . Non-combat . | . . . Combat . | . . . Robot Hacks Applied . | . . . Relay Couplers Released . | . . . Fabnet Peak Effective % . | . . . Robots Rewired . | . . . Allies Hacked . | . . . Hacks Repelled . | . . . Allies | -11 -10 -10 -------- Run | Yrd Mat Min Total Allies 3 | . . 3 Largest Group 3 | . . 3 Highest-Rated Group 77 | . . 77 Highest-Rated Ally 31 | . . 31 Total Orders . | . . . Ally Attacks 22 | . . 22 Total Damage 338 | . . 338 Kills 5 | . . 5 Allies Corrupted . | . . . Allies Melted . | . . . Intel | -11 -10 -10 ------- Run | Yrd Mat Min Robot Analysis Total 4 | . 4 . Derelict Logs Recovered 1 | . . 1 Drone Launches . | . . . Drone Recoveries . | . . . Exploration | -11 -10 -10 ------------- Run | Yrd Mat Min Turns Passed 1588 | 106 1254 228 Spaces Moved 1084 | 93 820 171 Core 46 | 46 . . Treads . | . . . Legs . | . . . Wheels 1038 | 47 820 171 Hover . | . . . Flight . | . . . Fastest Speed 50 | 50 80 80 Average Speed 78 | 66 80 80 Slowest Speed 90 | 90 80 80 Overloaded Moves . | . . . Propulsion Burnouts . | . . . Robots Hopped . | . . . Cave-ins Triggered . | . . . Exploration Rate (%) 48 | 3 97 46 Regions Visited 2 Branch Regions 1 Pre-discovered Areas 4 | . 4 . Known Exits Taken 1 | . 1 . Unknown Exits Taken 1 | 1 . . Scrap Searched 1 | . . 1 Spaces Dug . | . . . Terrain Destroyed 6 | . . 6 Melee . | . . . Projectile . | . . . AOE 6 | . . 6 Terrain Rammed . | . . . Walls Destroyed . | . . . Machines Disabled . | . . . Actions | -11 -10 -10 --------- Run | Yrd Mat Min Total 1682 | 112 1351 219 Wait 492 | . 481 11 Move 1082 | 92 819 171 Hop . | . . . Pick Up 5 | 1 2 2 Fast Attach 7 | 6 1 . Attach . | . . . Detach . | . . . Swap 3 | 1 . 2 Drop 5 | 1 2 2 Fire 70 | 11 34 25 Melee . | . . . Ram . | . . . Kick . | . . . Crush . | . . . Escape Stasis . | . . . Rewire . | . . . Trap . | . . . Miscellaneous 18 | . 12 6 Route ------- -11/Scrapyard -10/Materials (discovered 5 exits: *Mat x3 / *Min / Sub) -10/Mines (discovered 3 exits: *Mat x2 / Sub) History --------- Turn | Location | Event 4 | -11/Scrapyard | Discovered new exit (range 13) 24 | -11/Scrapyard | Upgraded with Propulsion slot (x1) 24 | -11/Scrapyard | Upgraded with Utility slot (x1) 24 | -11/Scrapyard | Upgraded with Weapon slot (x1) 107 | -11/Scrapyard | Entered Materials 265 | -10/Materials | Discovered new exit (range 16) 305 | -10/Materials | Identified exit to Mines 315 | -10/Materials | Build established: Hacker-Mutant 433 | -10/Materials | Discovered new exit (range 7) 609 | -10/Materials | Discovered new exit (range 10) 743 | -10/Materials | Central database locked down 758 | -10/Materials | Discovered new exit (range 15) 842 | -10/Materials | Loaded intel: 8 terminal locations 912 | -10/Materials | Learned location of Storage (-7) 972 | -10/Materials | Learned location of 2 exits from Subcaves 1020 | -10/Materials | Identified exit to Subcaves 1059 | -10/Materials | Learned location of Mines (-10) 1171 | -10/Materials | Learned Storage emergency access door positions 1242 | -10/Materials | Learned Storage trap positions 1313 | -10/Materials | Reached level 2 1361 | -10/Materials | Entered Mines 1371 | -10/Mines | Discovered new exit (range 7) 1375 | -10/Mines | Identified exit to Materials 1387 | -10/Mines | Met a Derelict testing a Signal Generator 1503 | -10/Mines | Reached level 3 1514 | -10/Mines | Found a hidden stash of uninstalled traps 1551 | -10/Mines | Discovered exit to Materials (range 7) 1563 | -10/Mines | Assembled infested the area 1580 | -10/Mines | Core integrity fell below 50% 1586 | -10/Mines | Core integrity fell below 20% 1589 | -10/Mines | Destroyed by D-53 Grenadier with Mini Grenade Launcher Last Messages --------------- 01569_ as-19842 destroyed. 01569_ as-99253 destroyed. 01569_ as-39325 destroyed. 01571_ as-03801 destroyed. 01571_ as-92415 destroyed. 01571_ D-53 Grenadier destroyed. 01573_ as-75350 destroyed. 01573_ as-80287 destroyed. 01573_ as-88270 destroyed. 01575_ GK-PJB(g) destroyed. 01575_ ZN-8TN(g) destroyed. 01576_ The unstable cave ceiling collapses. 01579_ as-72059 destroyed. 01580_ Acquired 4 matter. 01582_ Destroyed Shock Absorption System. 01584_ U-05 Engineer lays Concrete. 01585_ as-96860 destroyed. 01585_ U-05 Engineer lays Concrete. 01587_ The unstable cave ceiling collapses. 01587_ U-05 Engineer builds a Wall. Map ----- +----------------------------------------------------+ | ??????????????????????????????????????? | | ??????????????????????????????????????? | | ??????????????????????????????????????? | | ??????????????????????????????????????? | | ??????????????????????????????????????? | | ??????????????????????????????????????? | | ??????????????????????????????????????? | | ??????????????????????????????????????? | | ??????????????????????????????????????? | | ??????????????????????????????????????? | | ??????????????#???????????????????????? | | ???????#?????? ?# ???????????????????? | | ?????????????# # a????????????????? | | ????????????? a ??????????????? | | ????????????? %%% #????????????? | | ????????????? % ????????????? | | ??????? ????? ????????????? | | ????????????? #?????????????? | | ????????????? #??????????????? | | ????????????? #??????????????? | | ????#??????### ????????????????? | | ??????????## # ??#??????????????? | | ?????????## #?????? ???????????? | | ?????????# #??????????????????? | | ???????#?# ####????????????????? | | ???####### @ ##???????????????? | | ???## # #???????????????? | | ???# ##???#??????????? | | ???# ##??????????????? | | ???## d ##??##???????????? | | ???## %% ##?? ##??????????? | | ???# m ##??? #??????????? | | ??# # #??? ##?????????? | | ??# ### ##??# #####?????? | | ??## #?### u##?# ????? | | ???## < #???## ## ?????? | | ?#??# #????# #?????????? | | ????#####????## ##????????????? | | ?????????#??##### ##????????#????? | | ????????????????## ##########??#??? | | ?????????????????# #?????? | | ?????????? ?????## #?????? | | ???????????????## #?????? | | ?????? ????????# ##?##### | | ???????????????# ## ##?##!% | | ????????#??????# ##??##???#%### | | ??????????#????# ##???????#!#?? | | ??????????????## ##??????#?#!#?? | | ??????????????# ###?#??????# #?? | | ??????????????# ############ #?# | +----------------------------------------------------+ Best States ------------- Heat Dissipation 25 Energy Generation 10 Energy Capacity 250 Matter Stores 300 Matter Capacity 300 Sight Range 16 Terrain Scan Range 16 Terrain Scan Density 10 Resistance: KI 20 Resistance: TH 20 Resistance: EX 20 Resistance: EM 20 Resistance: I 20 Resistance: S 20 Resistance: P 20 Evasion (%) 50 Offensive Hacking 15 Defensive Hacking 5 Item Schematics ----------------- None Robot Schematics ------------------ None Fabricated ------------ Nothing Alien Tech Used ----------------- None Achievements -------------- None Challenges ------------ None RPGLIKE | -11 -10 -10 --------- Run | Yrd Mat Min Levels Raised 2 | . 1 1 XP Earned 7248 | 4000 1660 1588 XP Spent 2150 | 2150 . . Upgrades 6 | 6 . . Propulsion Slot 1 | 1 . . Utility Slot 1 | 1 . . Weapon Slot 1 | 1 . . Inventory Capacity 1 | 1 . . Hack Attack % 1 | 1 . . Hack Defense % 1 | 1 . . Protomatter Created 280 | . 182 98 Integrity Restored 272 | . 188 84 Core 226 | . 155 71 Parts 46 | . 33 13 Protomatter Decayed 180 | . 116 64 Game ------ Seed CobblerNovaStorm Manual? 0 Play Time 00:16:10 Cumulative 726.2 hours Start 2024.09.24 @ 13:16:42 End 2024.09.24 @ 13:32:49 Sessions 1 Manual Loads 0 Difficulty Adventurer Special Mode Winter2019/RPGLIKE Game No. 57 Rogue 9 Adventurer 34 Explorer 14 Win Type - Total 39 Types 20/2/10/1/1/2/0/2/1 Lore% 80 Gallery% 90 Achievement% 80 Wizard Run 0 Options --------- Layout 0 ASCII 0 Keyboard 1 Movement Numpad Keybinds 0 Fullscreen 2 Font 36/Terminus++ Map View 76x50 Zoom Use 0% Tactical HUD 1 Map Filters NONE Filters NONE Steam 0 RUN: 362764f0-0fba-48e4-8b02-8e71ad51a762